fUST/lending_fUST_20250408
["ID","MTS","AMOUNT","RATE_DAILY","PERIOD"]
[357462870,1744074670593,-981.04,0.00027397,2]
[357462871,1744074670602,-935.67,0.00027397,2]
[357462872,1744074670612,-1117.62,0.00027397,2]
[357462873,1744074670621,-891.04,0.00027397,2]
[357462874,1744074670630,-7096.89,0.00027397,2]
[357462875,1744074670639,-500.0,0.00027397,2]
[357462876,1744074670649,-2020.19,0.00027397,2]
[357462877,1744074670659,-673.71,0.00027397,2]
[357462878,1744074670668,-915.3,0.00027397,2]
[357462879,1744074670678,-1530.39,0.00027397,2]
[357462880,1744074670687,-1001.26,0.00027397,2]
[357462881,1744074670697,-1779.31,0.00027397,2]
[357462882,1744074670706,-1396.3,0.00027397,2]
[357462883,1744074670716,-151.165071,0.00027397,7]
[357462884,1744074670726,-159.06929,0.00027397,120]
[357462885,1744074670736,-500.0,0.00027397,5]
[357462886,1744074670745,-2254.0,0.00027633,2]
[357462887,1744074670755,-224.84517403,0.00027652,5]
[357462888,1744074670765,-594.65960246,0.00027652,5]
[357462889,1744074670774,-501.46052507,0.00027652,5]
[357462890,1744074670785,-1000.0,0.00027652,5]
[357462891,1744074670794,-386.77716487,0.00027652,5]
[357462892,1744074670804,-338.95670732,0.00027671,2]
[357462893,1744074670814,-500.0,0.00027671,2]
[357462894,1744074670823,-1054.15,0.00027671,2]
[357462895,1744074670833,-565.54,0.00027671,2]
[357462896,1744074670843,-897.24,0.00027671,2]
[357462897,1744074670853,-539.88,0.00027671,2]
[357462898,1744074670862,-898.45,0.00027671,2]
[357462899,1744074670872,-500.0,0.00027671,2]
[357462900,1744074670882,-1099.15,0.00027671,2]
[357462901,1744074670892,-621.92,0.00027671,2]
[357462902,1744074670901,-946.78,0.00027671,2]
[357462903,1744074670911,-753.71,0.00027671,2]
[357462904,1744074670920,-313.38,0.00027671,2]
[357462905,1744074670929,-612.5,0.00027671,2]
[357462906,1744074670939,-776.13,0.00027671,2]
[357462907,1744074670948,-616.31,0.00027671,2]
[357462908,1744074670958,-782.19,0.00027671,2]
[357462909,1744074670967,-876.68,0.00027671,2]
[357462910,1744074670977,-1913.65,0.00027671,2]
[357462911,1744074670986,-1363.45,0.00027671,2]
[357462912,1744074670996,-581.13,0.00027671,2]
[357462913,1744074671006,-2180.15,0.00027671,2]
[357462914,1744074671016,-224.44494557,0.00027671,2]
[357462915,1744074671025,-1056.87,0.00027671,2]
[357462916,1744074671034,-1638.96,0.00027671,2]
[357462917,1744074671043,-1826.87,0.00027671,2]
[357462918,1744074671053,-2187.06,0.00027671,2]
[357462919,1744074671062,-1054.98,0.00027671,2]
[357462920,1744074671071,-4072.57,0.00027671,2]
[357462921,1744074671081,-1015.17,0.00027671,2]
[357462922,1744074671091,-1010.38,0.00027671,2]
[357462923,1744074671101,-1169.46,0.00027671,2]
[357462924,1744074671112,-606.32,0.00027671,2]
[357462925,1744074671123,-1032.96,0.00027671,2]
[357462926,1744074671134,-996.48,0.00027671,2]
[357462927,1744074671145,-668.21,0.00027671,2]
[357462928,1744074671156,-843.03,0.00027671,2]
[357462929,1744074671166,-500.0,0.00027671,2]
[357462930,1744074671175,-612.83,0.00027671,2]
[357462931,1744074671185,-1371.06,0.00027671,2]
[357462932,1744074671195,-500.0,0.00027671,2]
[357462933,1744074671206,-1453.16,0.00027671,2]
[357462934,1744074671217,-2298.95,0.00027671,2]
[357462935,1744074671227,-1238.16,0.00027671,2]
[357462936,1744074671238,-1561.47,0.00027671,2]
[357462937,1744074671253,-1480.25,0.00027671,2]
[357462938,1744074671263,-954.42,0.00027671,2]
[357462939,1744074671272,-1158.68,0.00027671,2]
[357462940,1744074671282,-981.04,0.00027671,2]
[357462941,1744074671293,-935.67,0.00027671,2]
[357462942,1744074671303,-1117.62,0.00027671,2]
[357462943,1744074671313,-891.04,0.00027671,2]
[357462944,1744074671323,-7096.89,0.00027671,2]
[357462945,1744074671333,-500.0,0.00027671,2]
[357462946,1744074671342,-2020.19,0.00027671,2]
[357462947,1744074671352,-673.71,0.00027671,2]
[357462948,1744074671362,-915.3,0.00027671,2]
[357462949,1744074671373,-1530.39,0.00027671,2]
[357462950,1744074671382,-1001.26,0.00027671,2]
[357462951,1744074671392,-1779.31,0.00027671,2]
[357462952,1744074671402,-1396.3,0.00027671,2]
[357462953,1744074671412,-239.84119403,0.00027748,2]
[357462954,1744074671422,-150.0,0.00027859,2]
[357462955,1744074671432,-543.0,0.00027859,2]
[357462956,1744074671441,-436.44,0.00027945,18]
[357462957,1744074671451,-204.54017273,0.00027945,18]
[357462958,1744074671461,-500.0,0.00027945,2]
[357462959,1744074671471,-1054.15,0.00027945,2]
[357462960,1744074671481,-565.54,0.00027945,2]
[357462961,1744074671491,-897.24,0.00027945,2]
[357462962,1744074671500,-539.88,0.00027945,2]
[357462963,1744074671510,-898.45,0.00027945,2]
[357462964,1744074671520,-331.68852935,0.00027945,2]
[357462965,1744074671529,-1099.15,0.00027945,2]
[357462966,1744074671539,-621.92,0.00027945,2]
[357462967,1744074671549,-946.78,0.00027945,2]
[357462968,1744074671558,-753.71,0.00027945,2]
[357462969,1744074671568,-612.5,0.00027945,2]
[357462970,1744074671578,-776.13,0.00027945,2]
[357462971,1744074671588,-616.31,0.00027945,2]
[357462972,1744074671598,-782.19,0.00027945,2]
[357462973,1744074671608,-876.68,0.00027945,2]
[357462974,1744074671618,-1913.65,0.00027945,2]
[357462975,1744074671628,-1363.45,0.00027945,2]
[357462976,1744074671638,-581.13,0.00027945,2]
[357462977,1744074671647,-2180.15,0.00027945,2]
[357462978,1744074671657,-1056.87,0.00027945,2]
[357462979,1744074671667,-1638.96,0.00027945,2]
[357462980,1744074671677,-1826.87,0.00027945,2]
[357462981,1744074671687,-2187.06,0.00027945,2]
[357462982,1744074671697,-1054.98,0.00027945,2]
[357462983,1744074671707,-4072.57,0.00027945,2]
[357462984,1744074671719,-1015.17,0.00027945,2]
[357462985,1744074671730,-1010.38,0.00027945,2]
[357462986,1744074671741,-1169.46,0.00027945,2]
[357462987,1744074671751,-606.32,0.00027945,2]
[357462988,1744074671761,-1032.96,0.00027945,2]
[357462989,1744074671771,-996.48,0.00027945,2]
[357462990,1744074671781,-668.21,0.00027945,2]
[357462991,1744074671791,-843.03,0.00027945,2]
[357462992,1744074671801,-500.0,0.00027945,2]
[357462993,1744074671811,-612.83,0.00027945,2]
[357462994,1744074671820,-1371.06,0.00027945,2]
[357462995,1744074671830,-366.15687587,0.00027945,2]
[357462996,1744074671840,-1453.16,0.00027945,2]
[357462997,1744074671851,-2298.95,0.00027945,2]
[357462998,1744074671860,-1238.16,0.00027945,2]
[357462999,1744074671871,-1561.47,0.00027945,2]
[357463000,1744074671881,-1480.25,0.00027945,2]
[357463001,1744074671891,-954.42,0.00027945,2]
[357463002,1744074671901,-1158.68,0.00027945,2]
[357463003,1744074671912,-981.04,0.00027945,2]
[357463004,1744074671922,-935.67,0.00027945,2]
[357463005,1744074671932,-1117.62,0.00027945,2]
[357463006,1744074671942,-891.04,0.00027945,2]
[357463007,1744074671952,-7096.89,0.00027945,2]
[357463008,1744074671962,-604.3,0.00027945,2]
[357463009,1744074671972,-2020.19,0.00027945,2]
[357463010,1744074671982,-673.71,0.00027945,2]
[357463011,1744074671992,-915.3,0.00027945,2]
[357463012,1744074672001,-1530.39,0.00027945,2]
[357463013,1744074672012,-1001.26,0.00027945,2]
[357463014,1744074672021,-1779.31,0.00027945,2]
[357463015,1744074672031,-1396.3,0.00027945,2]
[357463016,1744074672041,-160.0,0.00028,3]
[357463017,1744074672051,-360.72336971,0.00028219,2]
[357463018,1744074672061,-1054.27108906,0.00028219,2]
[357463019,1744074672071,-565.74,0.00028219,2]
[357463020,1744074672081,-897.32577496,0.00028219,2]
[357463021,1744074672091,-539.93246367,0.00028219,2]
[357463022,1744074672101,-898.58291464,0.00028219,2]
[357463023,1744074672111,-1099.22378136,0.00028219,2]
[357463024,1744074672121,-622.01562964,0.00028219,2]
[357463025,1744074672132,-946.81,0.00028219,2]
[357463026,1744074672142,-753.82585631,0.00028219,2]
[357463027,1744074672153,-612.72545027,0.00028219,2]
[357463028,1744074672163,-776.1841679,0.00028219,2]
[357463029,1744074672174,-616.44848095,0.00028219,2]
[357463030,1744074672184,-782.24,0.00028219,2]
[357463031,1744074672194,-876.72774188,0.00028219,2]
[357463032,1744074672204,-1913.82,0.00028219,2]
[357463033,1744074672215,-1363.65,0.00028219,2]
[357463034,1744074672225,-581.26831143,0.00028219,2]
[357463035,1744074672236,-2180.19,0.00028219,2]
[357463036,1744074672249,-1056.93466219,0.00028219,2]
[357463037,1744074672259,-1639.1,0.00028219,2]
[357463038,1744074672270,-1826.92,0.00028219,2]
[357463039,1744074672280,-2187.28622014,0.00028219,2]
[357463040,1744074672290,-1055.09,0.00028219,2]
[357463041,1744074672299,-4072.72,0.00028219,2]
[357463042,1744074672309,-1015.35,0.00028219,2]
[357463043,1744074672319,-1010.41971226,0.00028219,2]
[357463044,1744074672330,-1169.47,0.00028219,2]
[357463045,1744074672340,-606.5,0.00028219,2]
[357463046,1744074672350,-1033.16502017,0.00028219,2]
[357463047,1744074672360,-996.57,0.00028219,2]
[357463048,1744074672370,-668.29,0.00028219,2]
[357463049,1744074672380,-843.03,0.00028219,2]
[357463050,1744074672390,-250.1312206,0.00028219,2]
[357463051,1744074672400,-613.00962547,0.00028219,2]
[357463052,1744074672410,-1371.11,0.00028219,2]
[357463053,1744074672419,-1453.26,0.00028219,2]
[357463054,1744074672429,-2299.01,0.00028219,2]
[357463055,1744074672440,-1238.32,0.00028219,2]
[357463056,1744074672450,-1561.69,0.00028219,2]
[357463057,1744074672460,-169.421274,0.00028219,7]
[357463058,1744074672470,-1480.25,0.00028219,2]
[357463059,1744074672480,-169.421274,0.00028219,7]
[357463060,1744074672490,-954.55,0.00028219,2]
[357463061,1744074672501,-1158.79,0.00028219,2]
[357463062,1744074672511,-981.08,0.00028219,2]
[357463063,1744074672521,-935.75,0.00028219,2]
[357463064,1744074672531,-1117.62,0.00028219,2]
[357463065,1744074672541,-891.15751576,0.00028219,2]
[357463066,1744074672551,-7097.08,0.00028219,2]
[357463067,1744074672560,-2020.22,0.00028219,2]
[357463068,1744074672570,-673.87,0.00028219,2]
[357463069,1744074672580,-915.52,0.00028219,2]
[357463070,1744074672590,-1530.4,0.00028219,2]
[357463071,1744074672599,-1001.35199116,0.00028219,2]
[357463072,1744074672609,-1779.52,0.00028219,2]
[357463073,1744074672620,-151.0,0.00028219,7]
[357463074,1744074672630,-1396.51785815,0.00028219,2]
[357463075,1744074672640,-160.0,0.00028417,3]
[357463076,1744074672650,-500.34759487,0.00028552,5]
[357463077,1744074672660,-4551.43792591,0.00028555,8]
[357463078,1744074672670,-160.0,0.00028739,4]
[357463079,1744074672680,-200.0,0.00028767,2]
[357463080,1744074672690,-160.0,0.00029061,5]
[357463081,1744074672700,-248.71531821,0.00029117,2]
[357463082,1744074672711,-160.0,0.00029382,6]
[357463083,1744074672721,-2000.0,0.00029538,4]
[357463084,1744074672731,-2000.0,0.00029692,4]
[357463085,1744074672742,-160.0,0.00029704,7]
[357463086,1744074672752,-1000.0,0.00029716,5]
[357463087,1744074672761,-2000.0,0.00029846,4]
[357463088,1744074672771,-1128.98050764,0.0003,7]
[357463089,1744074672782,-150.0,0.0003,2]
[357463090,1744074672791,-160.0,0.00030025,8]
[357463091,1744074672801,-160.0,0.00030347,9]
[357463092,1744074672811,-160.0,0.00030347,5]
[357463093,1744074672822,-257.91778498,0.00030486,2]
[357463094,1744074672832,-922.963,0.00030633,2]
[357463095,1744074672842,-150.0,0.00030859,2]
[357463096,1744074672852,-543.0,0.00030859,2]
[357463097,1744074672863,-4551.43792591,0.00031107,9]
[357463098,1744074672872,-1000.0,0.00031213,5]
[357463099,1744074672883,-179.91004498,0.00031351,7]
[357463100,1744074672892,-150.0,0.00031644,2]
[357463101,1744074672902,-267.46074303,0.00031855,2]
[357463102,1744074672912,-500.0,0.00032877,2]
[357463103,1744074672922,-1000.0,0.00032877,5]
[357463104,1744074672932,-443.26664258,0.00033224,2]
[357463105,1744074672942,-4551.43792591,0.00033659,11]
[357463106,1744074672951,-150.0,0.00033859,2]
[357463107,1744074672962,-136799.24803995,0.00034,2]
[357463108,1744074672971,-151.0,0.00034,14]
[357463109,1744074672981,-151.0,0.00034,14]
[357463110,1744074672992,-459.784554,0.00034,14]
[357463111,1744074673002,-151.0,0.00034,14]
[357463112,1744074673012,-459.784554,0.00034,14]
[357463113,1744074673022,-290.742792,0.00034,14]
[357463114,1744074673032,-290.742792,0.00034,14]
[357463115,1744074673043,-151.0,0.00034,14]
[357463116,1744074673053,-151.0,0.00034,14]
[357463117,1744074673064,-252.3801,0.00034,14]
[357463118,1744074673075,-252.3801,0.00034,14]
[357463119,1744074673085,-151.0,0.00034,14]
[357463120,1744074673096,-151.0,0.00034,2]
[357463121,1744074673106,-190.618464,0.00034,2]
[357463122,1744074673116,-190.618464,0.00034,2]
[357463123,1744074673126,-199.036966,0.00034,14]
[357463124,1744074673136,-199.036966,0.00034,14]
[357463125,1744074673146,-150.0,0.000346,2]
[357463126,1744074673157,-151.0,0.00034693,2]
[357463127,1744074673168,-175.5133285,0.00034693,2]
[357463128,1744074673179,-306.00000041,0.00034694,2]
[357463129,1744074673189,-12400.0,0.00035,3]
[357463130,1744074673199,-288476.40827113,0.00035,2]
[357463131,1744074673209,-151.0,0.00035,14]
[357463132,1744074673219,-150.0,0.00035,69]
[357463133,1744074673229,-617.0,0.00035269,30]
[357463134,1744074673244,-150.0,0.000356,2]
[357463135,1744074673254,-150.06,0.00035616,7]
[357463136,1744074673266,-150.06,0.00035616,7]
[357463137,1744074673277,-150.06,0.00035616,7]
[357463138,1744074673288,-300.0,0.00035616,7]
[357463139,1744074673299,-150.06,0.00035616,7]
[357463140,1744074673310,-150.06,0.00035616,7]
[357463141,1744074673322,-150.06,0.00035616,7]
[357463142,1744074673332,-150.06,0.00035616,7]
[357463143,1744074673343,-150.06,0.00035616,7]
[357463144,1744074673354,-150.06,0.00035616,7]
[357463145,1744074673365,-150.06,0.00035616,7]
[357463146,1744074673375,-150.06,0.00035616,7]
[357463147,1744074673386,-150.06,0.00035616,7]
[357463148,1744074673396,-150.06,0.00035616,7]
[357463149,1744074673407,-150.06,0.00035616,7]
[357463150,1744074673417,-150.06,0.00035616,7]
[357463151,1744074673641,-150.06,0.00035616,7]
[357463152,1744074673653,-150.06,0.00035616,7]
[357463153,1744074673663,-150.06,0.00035616,7]
[357463154,1744074673674,-300.0,0.00035616,7]
[357463155,1744074673684,-150.06,0.00035616,7]
[357463156,1744074673694,-500.0,0.00035616,7]
[357463157,1744074673704,-150.06,0.00035616,7]
[357463158,1744074673714,-500.0,0.00035616,7]
[357463159,1744074673724,-500.0,0.00035616,7]
[357463160,1744074673734,-500.0,0.00035616,7]
[357463161,1744074673744,-500.0,0.00035616,7]
[357463162,1744074673755,-500.0,0.00035616,7]
[357463163,1744074673765,-500.0,0.00035616,7]
[357463164,1744074673775,-500.0,0.00035616,7]
[357463165,1744074673784,-500.0,0.00035616,7]
[357463166,1744074673795,-500.0,0.00035616,7]
[357463167,1744074673804,-500.0,0.00035616,7]
[357463168,1744074673814,-500.0,0.00035616,7]
[357463169,1744074673824,-500.0,0.00035616,7]
[357463170,1744074673834,-500.0,0.00035616,7]
[357463171,1744074673844,-500.0,0.00035616,7]
[357463172,1744074673854,-500.0,0.00035616,7]
[357463173,1744074673864,-500.0,0.00035616,7]
[357463174,1744074673875,-500.0,0.00035616,7]
[357463175,1744074673886,-500.0,0.00035616,7]
[357463176,1744074673896,-500.0,0.00035616,7]
[357463177,1744074673906,-500.0,0.00035616,7]
[357463178,1744074673917,-500.0,0.00035616,7]
[357463179,1744074673927,-500.0,0.00035616,7]
[357463180,1744074673937,-500.0,0.00035616,7]
[357463181,1744074673947,-500.0,0.00035616,7]
[357463182,1744074673958,-500.0,0.00035616,7]
[357463183,1744074673968,-500.0,0.00035616,7]
[357463184,1744074673978,-500.0,0.00035616,7]
[357463185,1744074673988,-500.0,0.00035616,7]
[357463186,1744074673998,-500.0,0.00035616,7]
[357463187,1744074674007,-500.0,0.00035616,7]
[357463188,1744074674017,-500.0,0.00035616,7]
[357463189,1744074674027,-500.0,0.00035616,7]
[357463190,1744074674037,-500.0,0.00035616,7]
[357463191,1744074674046,-500.0,0.00035616,7]
[357463192,1744074674057,-500.0,0.00035616,7]
[357463193,1744074674066,-299.9595,0.00035616,7]
[357463194,1744074674076,-500.0,0.00035673,5]
[357463195,1744074674086,-500.0,0.00035673,5]
[357463196,1744074674096,-500.0,0.00035673,5]
[357463197,1744074674105,-2723.2958905,0.000357,30]
[357463198,1744074674257,-33399.22477486,0.000357,30]
[357463199,1744074674471,-0.01807311,0.00029329,2]
[357463200,1744074674484,-1751.78680382,0.00029329,2]
[357463201,1744074674494,-150.0,0.00033226,2]
[357463202,1744074674504,-48.68421274,0.000357,30]
[357463203,1744074674604,-318.75408905,0.00021917,2]
[357463204,1744074674709,-181.24591095,0.00021917,2]
[357463205,1744074674719,-500.0,0.00021917,2]
[357463206,1744074674730,-500.0,0.00021917,2]
[357463207,1744074674742,-500.0,0.00022191,2]
[357463208,1744074674752,-500.0,0.00022191,2]
[357463209,1744074674763,-500.0,0.00022191,2]
[357463210,1744074674774,-500.0,0.00022465,2]
[357463211,1744074674784,-26.22189343,0.00022465,2]
[357463214,1744075550165,-1761.7058923,0.00021483,2]
[357463215,1744075550195,-204.1,0.00021907,2]
[357463216,1744075550224,-300.0,0.00021915,2]
[357463217,1744075550250,-10000.0,0.00021916,2]
[357463218,1744075550277,-500.0,0.00021917,2]
[357463219,1744075550303,-500.0,0.00021917,2]
[357463220,1744075550329,-500.0,0.00021917,2]
[357463221,1744075550353,-500.0,0.00021917,2]
[357463222,1744075550378,-500.0,0.00021917,2]
[357463223,1744075550403,-500.0,0.00021917,2]
[357463224,1744075550429,-500.0,0.00021917,2]
[357463225,1744075550454,-500.0,0.00021917,2]
[357463226,1744075550481,-500.0,0.00021917,2]
[357463227,1744075550506,-500.0,0.00021917,2]
[357463228,1744075550532,-500.0,0.00021917,2]
[357463229,1744075550556,-500.0,0.00021917,2]
[357463230,1744075550580,-500.0,0.00021917,2]
[357463231,1744075550605,-500.0,0.00021917,2]
[357463232,1744075550629,-579.87459836,0.00021917,2]
[357463233,1744075550652,-210.77048306,0.00021917,2]
[357463234,1744075550677,-323.13408188,0.00021917,2]
[357463235,1744075550700,-512.61328906,0.00021917,2]
[357463236,1744075550724,-500.0,0.00021917,2]
[357463237,1744075550747,-431.30893341,0.00021917,2]
[357463238,1744075550771,-500.0,0.00021917,2]
[357463239,1744075550794,-500.0,0.00021917,2]
[357463240,1744075551195,-500.0,0.00021917,2]
[357463241,1744075551219,-500.0,0.00021917,2]
[357463242,1744075551241,-500.0,0.00021917,2]
[357463243,1744075551263,-200.0,0.00021917,2]
[357463244,1744075551286,-442.03505894,0.00021917,2]
[357463245,1744075551308,-500.0,0.00021917,2]
[357463246,1744075551333,-500.0,0.00021917,2]
[357463247,1744075551355,-500.0,0.00021917,2]
[357463248,1744075551376,-500.0,0.00021917,2]
[357463249,1744075551399,-500.0,0.00021917,2]
[357463250,1744075551422,-500.0,0.00021917,2]
[357463251,1744075551444,-500.0,0.00021917,2]
[357463252,1744075551469,-500.0,0.00021917,2]
[357463253,1744075551492,-500.0,0.00021917,2]
[357463254,1744075551518,-500.0,0.00021917,2]
[357463255,1744075551540,-500.0,0.00021917,2]
[357463256,1744075551563,-500.0,0.00021917,2]
[357463257,1744075551587,-500.0,0.00021917,2]
[357463258,1744075551610,-500.0,0.00021917,2]
[357463259,1744075551632,-500.0,0.00021917,2]
[357463260,1744075551655,-500.0,0.00021917,2]
[357463261,1744075551678,-500.0,0.00021917,2]
[357463262,1744075551701,-500.0,0.00021917,2]
[357463263,1744075551725,-500.0,0.00021917,2]
[357463264,1744075551747,-500.0,0.00021917,2]
[357463265,1744075551771,-500.0,0.00021917,2]
[357463266,1744075551794,-500.0,0.00021917,2]
[357463267,1744075551816,-249.42,0.00021917,2]
[357463268,1744075551839,-500.0,0.00021917,2]
[357463269,1744075551861,-500.0,0.00021917,2]
[357463270,1744075551884,-362.86088969,0.00021917,2]
[357463271,1744075551906,-500.0,0.00021917,2]
[357463272,1744075551929,-500.0,0.00021917,2]
[357463273,1744075551951,-500.0,0.00021917,2]
[357463274,1744075551975,-500.0,0.00021917,2]
[357463275,1744075551999,-500.0,0.00021917,2]
[357463276,1744075552022,-500.0,0.00021917,2]
[357463277,1744075552045,-500.0,0.00021917,2]
[357463278,1744075552067,-500.0,0.00021917,2]
[357463279,1744075552090,-500.0,0.00021917,2]
[357463280,1744075552111,-500.0,0.00021917,2]
[357463281,1744075552133,-500.0,0.00021917,2]
[357463282,1744075552153,-500.0,0.00021917,2]
[357463283,1744075552174,-500.0,0.00021917,2]
[357463284,1744075552195,-500.0,0.00021917,2]
[357463285,1744075552219,-500.0,0.00021917,2]
[357463286,1744075552241,-500.0,0.00021917,2]
[357463287,1744075552262,-500.0,0.00021917,2]
[357463288,1744075552284,-500.0,0.00021917,2]
[357463289,1744075552304,-500.0,0.00021917,2]
[357463290,1744075552325,-500.0,0.00021917,2]
[357463291,1744075552346,-500.0,0.00021917,2]
[357463292,1744075552383,-500.0,0.00021917,2]
[357463293,1744075552406,-500.0,0.00021917,2]
[357463294,1744075552429,-500.0,0.00021917,2]
[357463295,1744075552452,-500.0,0.00021917,2]
[357463296,1744075552483,-500.0,0.00021917,2]
[357463297,1744075552511,-500.0,0.00021917,2]
[357463298,1744075552536,-500.0,0.00021917,2]
[357463299,1744075552562,-500.0,0.00021917,2]
[357463300,1744075552586,-500.0,0.00021917,2]
[357463301,1744075552611,-500.0,0.00021917,2]
[357463302,1744075552634,-500.0,0.00021917,2]
[357463303,1744075552657,-500.0,0.00021917,2]
[357463304,1744075552680,-500.0,0.00021917,2]
[357463305,1744075552703,-500.0,0.00021917,2]
[357463306,1744075552727,-500.0,0.00021917,2]
[357463307,1744075552750,-500.0,0.00021917,2]
[357463308,1744075552772,-500.0,0.00021917,2]
[357463309,1744075552794,-500.0,0.00021917,2]
[357463310,1744075552816,-500.0,0.00021917,2]
[357463311,1744075552839,-500.0,0.00021917,2]
[357463312,1744075552861,-500.0,0.00021917,2]
[357463313,1744075552884,-500.0,0.00021917,2]
[357463314,1744075552908,-500.0,0.00021917,2]
[357463315,1744075552933,-500.0,0.00021917,2]
[357463316,1744075552957,-500.0,0.00021917,2]
[357463317,1744075552983,-500.0,0.00021917,2]
[357463318,1744075553005,-500.0,0.00021917,2]
[357463319,1744075553027,-200.0,0.00021917,2]
[357463320,1744075553049,-500.0,0.00021917,2]
[357463321,1744075553071,-500.0,0.00021917,2]
[357463322,1744075553094,-500.0,0.00021917,2]
[357463323,1744075553115,-500.0,0.00021917,2]
[357463324,1744075553139,-500.0,0.00021917,2]
[357463325,1744075553161,-500.0,0.00021917,2]
[357463326,1744075553183,-500.0,0.00021917,2]
[357463327,1744075553206,-500.0,0.00021917,2]
[357463328,1744075553229,-500.0,0.00021917,2]
[357463329,1744075553253,-500.0,0.00021917,2]
[357463330,1744075553274,-500.0,0.00021917,2]
[357463331,1744075553297,-500.0,0.00021917,2]
[357463332,1744075553320,-500.0,0.00021917,2]
[357463333,1744075553342,-500.0,0.00021917,2]
[357463334,1744075553364,-500.0,0.00021917,2]
[357463335,1744075553386,-500.0,0.00021917,2]
[357463336,1744075553407,-500.0,0.00021917,2]
[357463337,1744075553430,-500.0,0.00021917,2]
[357463338,1744075553452,-500.0,0.00021917,2]
[357463339,1744075553476,-500.0,0.00021917,2]
[357463340,1744075553500,-500.0,0.00021917,2]
[357463341,1744075553525,-500.0,0.00021917,2]
[357463342,1744075553548,-500.0,0.00021917,2]
[357463343,1744075553572,-500.0,0.00021917,2]
[357463344,1744075553595,-500.0,0.00021917,2]
[357463345,1744075553618,-500.0,0.00021917,2]
[357463346,1744075553640,-500.0,0.00021917,2]
[357463347,1744075553662,-500.0,0.00021917,2]
[357463348,1744075553684,-500.0,0.00021917,2]
[357463349,1744075553709,-500.0,0.00021917,2]
[357463350,1744075553733,-500.0,0.00021917,2]
[357463351,1744075553756,-500.0,0.00021917,2]
[357463352,1744075553780,-500.0,0.00021917,2]
[357463353,1744075553802,-500.0,0.00021917,2]
[357463354,1744075553824,-684.93,0.00021917,2]
[357463355,1744075553845,-500.0,0.00021917,2]
[357463356,1744075553868,-555.55333302,0.00021917,2]
[357463357,1744075553890,-500.0,0.00021917,2]
[357463358,1744075553912,-500.0,0.00021917,2]
[357463359,1744075553935,-500.0,0.00021917,2]
[357463360,1744075553959,-500.0,0.00021917,2]
[357463361,1744075553983,-500.0,0.00021917,2]
[357463362,1744075554006,-500.0,0.00021917,2]
[357463363,1744075554029,-500.0,0.00021917,2]
[357463364,1744075554052,-500.0,0.00021917,2]
[357463365,1744075554077,-500.0,0.00021917,2]
[357463366,1744075554101,-500.0,0.00021917,2]
[357463367,1744075554123,-500.0,0.00021917,2]
[357463368,1744075554145,-627.85,0.00021917,2]
[357463369,1744075554168,-500.0,0.00021917,2]
[357463370,1744075554190,-500.0,0.00021917,2]
[357463371,1744075554212,-500.0,0.00021917,2]